[Event "40th Cappelle Open 2024"]
[Site "Cappelle-la-Grande"]
[Date "2024.03.03"]
[Round "2.14"]
[White "Karamsetty, Jeevan"]
[Black "Barp, Alberto"]
[Result "0-1"]
[ECO "B13"]
[WhiteElo "2187"]
[BlackElo "2449"]
[Annotator "TA"]
[PlyCount "110"]
[EventDate "2024.03.02"]
[EventType "swiss"]
[EventCountry "FRA"]
[SourceTitle "playchess.com"]
[Source "ChessBase"]
[SourceQuality "1"]
[TimeControl "40/5400+30:1800+30"]

{[%evp 17,110,24,18,-14,18,10,15,-4,-11,-10,-8,-4,-9,-8,-4,-15,-9,-20,-4,-23,-6,-8,-8,-4,-2,-34,-24,-25,-28,-47,-41,-180,-166,-230,-222,-229,-218,-225,-229,-218,-218,-211,-221,-262,-252,-283,-238,-226,-225,-282,-232,-213,-195,-317,-320,-311,-325,-362,-356,-420,-438,-398,-337,-390,-388,-408,-410,-401,-287,-325,-295,-282,-277,-283,0,-331,-317,-339,-216,-356,-366,-697,-610,-5106,-2251,-5206,-5086,-29988,-29989,-29991,-29992,-29992,-29988,-29987,-11751]} 1. e4 {[%emt 0:00:04]} c6 {[%emt 0:00:47]} 2. d4 {[%emt 0:00:15]} d5 {[%emt 0:00:04]} 3. exd5 {[%emt 0:00:06]} cxd5 {[%emt 0:00:05]} 4. Bd3 {[%emt 0:00:06]} Nc6 {[%emt 0:00:04]} 5. c3 {[%emt 0:00:06]} Qc7 {[%emt 0:00:06]} 6. Ne2 {[%emt 0:00:05]} Bg4 {[%emt 0:00:05]} 7. O-O {[%emt 0:00:08] B13: Caro-Kann: Exchange Variation and Panov-Botvinnik Attack.} e6 {[%emt 0:00:12]} 8. Qe1 {[%emt 0:00:11]} Nf6 {[%emt 0:00:14]} 9. f3 {[%emt 0:11:43]} Bh5 {[%emt 0:00:56]} 10. Bf4 {[%emt 0:03:36]} Bd6 {[%emt 0:03:40]} 11. Qg3 {[%emt 0:05:41]} Bxf4 {[%emt 0:11:42]} 12. Qxf4 $146 {[%emt 0:04:03]} ({Predecessor:} 12. Nxf4 Bg6 13. Nxg6 Qxg3 14. hxg3 hxg6 15. Nd2 g5 16. g4 Ke7 17. Kf2 Ne8 18. a4 {0-1 Geltz,N (2048)-Kolb,T (2307) GER-ch U18 Willingen 2021 (2)}) 12... Qb6 {[%emt 0:05:32]} 13. Na3 {[%emt 0:19:20]} Bg6 {[%emt 0:05:37]} (13... Qxb2 $2 14. Nb5 O-O 15. Rfb1 $18) 14. Qd2 {[%emt 0:03:33]} Bxd3 {[%emt 0:16:41]} 15. Qxd3 {[%emt 0:00:07]} O-O {[%emt 0:00:21]} (15... Qxb2 $2 16. Nb5 $18) 16. Kh1 {[%emt 0:05:12]} Rfe8 {[%emt 0:03:51]} (16... Qxb2 17. Nb5 a6 18. Rfb1 $16) 17. Ng3 {[%emt 0:06:33]} Rad8 {[%emt 0:08:11]} 18. Rab1 {[%emt 0:02:56]} a6 {[%emt 0:14:51]} 19. Nc2 {[%emt 0:02:38]} Qa5 {[%emt 0:04:21]} 20. a3 {[%emt 0:01:13]} Qc7 {[%emt 0:00:04]} 21. f4 {[%emt 0:06:48]} h5 {[%emt 0:05:09]} 22. Qf3 {[%emt 0:03:14]} g6 {[%emt 0:00:12]} 23. Ne3 {[%emt 0:06:39]} Ne7 {[%emt 0:01:28]} 24. f5 {[%emt 0:04:53]} ({White should try} 24. Ne2 $15) 24... exf5 {[%emt 0:02:07]} 25. Nexf5 {[%emt 0:00:45]} (25. Rbc1 {was called for.}) 25... Nxf5 {[%emt 0:03:12]} 26. Nxf5 {[%emt 0:00:08]} gxf5 {[%emt 0:00:56]} 27. Qxf5 {[%emt 0:00:14] [#]} Ne4 $1 {[%emt 0:00:26]} 28. Qxh5 {[%emt 0:01:49]} Re6 {[%emt 0:01:12]} 29. Rf3 {[%emt 0:01:35]} Rdd6 {[%emt 0:00:53]} 30. Rbf1 {[%emt 0:01:11]} Rh6 {[%emt 0:02:43]} 31. Qe5 {[%emt 0:01:04]} f6 {[%emt 0:02:55]} 32. Qf4 {[%emt 0:02:11]} Qh7 {[%emt 0:02:05]} 33. Qg4+ {[%emt 0:02:13]} Qg7 {[%emt 0:01:46]} 34. Qc8+ {[%emt 0:00:51]} Kh7 {[%emt 0:00:04]} 35. Rh3 {[%emt 0:02:08]} (35. Kg1 $142) 35... Rxh3 $19 {[%emt 0:00:31]} 36. Qxh3+ {[%emt 0:00:12]} Qh6 {[%emt 0:00:20]} 37. Qf5+ {[%emt 0:00:39]} Kg7 {[%emt 0:01:22]} 38. Qg4+ {[%emt 0:01:34]} Kf7 {[%emt 0:01:15]} 39. g3 {[%emt 0:01:54]} Re6 {[%emt 0:02:03]} 40. Rf4 {[%emt 0:01:47]} Qg6 {[%emt 0:01:40]} 41. Qf3 {[%emt 0:04:57]} Ke7 {[%emt 0:15:14]} 42. Kg2 {[%emt 0:07:14]} Kd6 {[%emt 0:09:33]} 43. Qd3 {[%emt 0:08:44]} Qh5 {[%emt 0:00:54]} 44. Rh4 {[%emt 0:01:17]} Qf5 {[%emt 0:00:22]} 45. Rf4 {[%emt 0:01:05]} Qh5 {[%emt 0:00:01]} 46. Rh4 $1 {[%emt 0:00:32]} Qe8 {[%emt 0:00:11]} 47. Rh7 {[%emt 0:04:17]} Re7 {[%emt 0:00:11]} 48. Rh6 {[%emt 0:00:14]} (48. Rxe7 {was the only chance.} Kxe7 49. Qd1) 48... Kc7 $19 {[%emt 0:01:33]} 49. Qd1 $2 {[%emt 0:05:21]} (49. b3) 49... Kb8 {[%emt 0:01:29]} 50. Qh5 {[%emt 0:00:07]} Qb5 {[%emt 0:01:25]} 51. b4 {[%emt 0:00:47]} Qd3 {[%emt 0:02:24]} 52. Rh8+ {[%emt 0:00:17]} Ka7 {[%emt 0:00:18]} 53. Qxd5 {[%emt 0:00:35]} Qe2+ {[%emt 0:00:10]} (53... Nxc3 54. Qc5+ b6 55. Qxe7#) 54. Kh3 {[%emt 0:00:17]} Ng5+ {[%emt 0:00:09]} ({Not} 54... Nxc3 55. Qc5+ b6 56. Qc8 (56. Qxc3 $2 {too greedy.} Qf1+ 57. Kh4 Qf5 $19) 56... Qe6+ (56... Qf1+ 57. Kh4 $16) 57. Qxe6 Rxe6 58. Rh7+ Kb8 59. Kg4 $15) 55. Kh4 {[%emt 0:00:10]} Re4+ {[%emt 0:00:06]} (55... Nf3+ $142 56. Kg4 Nxd4+ (56... Nxh2+ $2 57. Kh3 $19) 57. Kh3 Qf1+ (57... Ne6 $2 58. Qh1 $19) 58. Qg2 Qf5+ 59. g4 Re3+ 60. Qg3 Rxg3+ 61. Kxg3 Qe5+ 62. Kg2 Qe2+ 63. Kh3 Qe3+ 64. Kh4 Nf3+ (64... Qxc3 $2 65. Re8 $19) 65. Kh3 Ne1+ (65... Qxc3 {gets mated.} 66. Kg2 Ne5 67. Rh3 Qd2+ 68. Kf1 Nxg4 69. Rf3 Nxh2+ 70. Kg1 Nxf3+ 71. Kf1 Nd4 72. Kg1 Qe2 73. Kh1 Nf3 74. a4 Qh2#) 66. Kh4 Ng2+ 67. Kh5 Qg5#) 0-1

[Event "40th Cappelle Open 2024"]
[Site "Cappelle-la-Grande"]
[Date "2024.03.03"]
[Round "2.15"]
[White "Degraeve, Remy"]
[Black "Derige Kane, Yan"]
[Result "1-0"]
[ECO "C02"]
[WhiteElo "2447"]
[BlackElo "2230"]
[Annotator "TA"]
[PlyCount "139"]
[EventDate "2024.03.02"]
[EventType "swiss"]
[EventCountry "FRA"]
[SourceTitle "playchess.com"]
[Source "ChessBase"]
[SourceQuality "1"]
[TimeControl "40/5400+30:1800+30"]

{[%evp 16,139,22,19,37,17,18,18,34,3,58,56,85,50,54,41,50,44,62,57,76,73,77,23,60,34,29,36,30,37,83,49,58,48,45,45,52,0,0,-81,-82,-75,-68,-87,-71,-64,-56,-51,-50,-58,-41,-51,-22,-22,-16,-14,0,0,21,20,42,11,94,5,5,12,185,193,207,152,137,147,168,94,95,100,103,95,91,87,134,123,171,118,123,106,171,145,160,83,169,124,306,302,255,229,253,209,324,262,324,324,324,324,553,542,461,324,389,359,357,343,420,420,430,416,614,439,439,437,410,429,439,420,29978,29980]} 1. e4 {[%emt 0:00:09]} c5 {[%emt 0:00:11]} 2. Nf3 {[%emt 0:00:09]} e6 {[%emt 0:00:05]} 3. c3 {[%emt 0:00:59]} Nc6 {[%emt 0:01:26]} 4. d4 {[%emt 0:00:11]} cxd4 {[%emt 0:00:22]} 5. cxd4 {[%emt 0:00:05]} d5 {[%emt 0:00:05]} 6. e5 {[%emt 0:00:15]} Nge7 {[%emt 0:00:13]} 7. Na3 {[%emt 0:00:29]} Nf5 {[%emt 0:03:39]} 8. Nc2 {[%emt 0:00:03]} Be7 {[%emt 0:01:15]} 9. Bd3 {[%emt 0:00:06]} O-O {[%emt 0:05:34]} 10. O-O {[%emt 0:00:45]} f6 {[%emt 0:25:47]} 11. Bf4 {[%emt 0:01:00]} fxe5 {[%emt 0:06:26] The position is equal.} 12. Nxe5 {[%emt 0:00:05]} (12. dxe5 Nh4 13. g3 Nxf3+ 14. Qxf3 g5 $11 (14... Nxe5 15. Bxh7+ Kxh7 16. Qh5+ Kg8 17. Bxe5 $14)) 12... Nxe5 {[%emt 0:09:34]} (12... Qb6 $11) 13. Bxe5 $14 {[%emt 0:00:13]} Qe8 {[%emt 0:04:13]} 14. Rc1 {[%emt 0:06:20]} Bd7 {[%emt 0:01:21]} 15. Re1 {[%emt 0:04:36]} Qf7 {[%emt 0:02:25]} 16. Qd2 {[%emt 0:06:36]} a5 {[%emt 0:06:13]} 17. a3 {[%emt 0:00:54]} Nd6 {[%emt 0:03:00]} 18. Ne3 {[%emt 0:03:07] Wards off Nc4} Bc6 {[%emt 0:00:54]} 19. Bg3 {[%emt 0:03:07] White is much more active.} (19. Rc3 $16) 19... h5 {[%emt 0:05:08]} 20. h3 {[%emt 0:08:16]} Ne4 {[%emt 0:02:09]} 21. Bxe4 {[%emt 0:00:48]} dxe4 {[%emt 0:00:01]} 22. Nc4 {[%emt 0:03:13]} Bf6 {[%emt 0:00:23] Prevents Ne5.} (22... Qf5 $14) 23. Ne5 {[%emt 0:02:14]} Bxe5 {[%emt 0:00:38]} 24. Bxe5 {[%emt 0:00:04]} Qg6 {[%emt 0:01:02][%cal Og6g2] And now ...Qxg2+! would win. Black is weak on the dark squares} 25. Re3 {[%emt 0:08:44]} h4 {[%emt 0:01:57] Against Rg3} 26. Qc2 {[%emt 0:09:34]} ({Better is} 26. Qe2 $14) 26... Rf5 $11 {[%emt 0:01:42]} 27. Bd6 {[%emt 0:18:53] Prevents Raf8} (27. Kh2 $11) 27... Rg5 $17 {[%emt 0:02:19]} 28. g4 {[%emt 0:00:24]} hxg3 {[%emt 0:00:40]} 29. Bxg3 {[%emt 0:00:47]} Rf8 {[%emt 0:05:56] Threatens to win with ...Qh6.} 30. Kh2 {[%emt 0:00:14]} Qh6 {[%emt 0:04:36] ...Rh5 would now be deadly.} 31. Rg1 {[%emt 0:01:52]} Rgf5 {[%emt 0:02:55]} 32. Rg2 {[%emt 0:04:34]} Rf3 {[%emt 0:01:21]} 33. Qc3 {[%emt 0:15:08]} a4 {[%emt 0:00:32]} 34. Kg1 {[%emt 0:01:24]} R8f7 {[%emt 0:00:41]} 35. Be5 {[%emt 0:01:21]} Rxe3 {[%emt 0:02:44]} 36. fxe3 {[%emt 0:00:40]} Kh7 {[%emt 0:00:31]} 37. Qe1 {[%emt 0:00:39]} Bb5 {[%emt 0:00:29][%cal Ob5f1]} (37... Qxh3 $2 38. Rh2 $18) 38. Kh2 {[%emt 0:00:12]} g5 {[%emt 0:00:31]} (38... Bf1 $11 39. Rg3 Qh5) 39. Qg3 {[%emt 0:01:08]} (39. Qa5 $1 $16 {[%cal Ra5d8]} Rf3 (39... Bf1 $2 40. Qd8 $18) 40. Qxb5 Rxh3+ 41. Kg1 Rh1+ 42. Kf2 Qf8+ 43. Bf4 gxf4 44. Qxb7+ (44. Qxa4 $2 fxe3+ 45. Kxe3 Qf3+ 46. Kd2 Qd3#) 44... Kh8 45. Qxe4) 39... Rf3 $11 {[%emt 0:00:27]} 40. Qg4 $40 {[%emt 0:00:33][%mdl 128] White mounts an attack.} (40. Qxg5 $2 Qxh3+ 41. Kg1 Rf1#) 40... Bf1 $2 {[%emt 0:00:28]} (40... Qg6 $1 $11 {and Black is okay.}) 41. Qxe4+ $18 {[%emt 0:03:10]} Rf5 {[%emt 0:01:04]} 42. Rg3 {[%emt 0:00:28]} Ba6 {[%emt 0:02:27]} 43. Qc2 {[%emt 0:03:23]} Qh5 {[%emt 0:05:45] [#]} 44. Qc7+ {[%emt 0:02:41]} (44. Qxa4 Bd3 (44... Rf2+ 45. Kg1 $11) 45. Qd7+ Rf7 46. Qxe6 Rf2+ 47. Rg2 Rxg2+ 48. Kxg2 Qe2+ 49. Kg3 Qxe3+ 50. Kg2 (50. Kg4 Be2+ 51. Kf5 Qf3+ 52. Kxg5 Qh5+ 53. Kf4 Qf3+ 54. Kg5 Qh5+ 55. Kf4 Qf3+ 56. Kg5 $11) 50... Be4+ 51. Kf1 Qf3+ 52. Ke1 Qe3+ 53. Kf1 Qc1+ 54. Ke2 Qc2+ 55. Ke1 Qb1+ 56. Kd2 Qc2+ 57. Ke1 Qb1+ 58. Kf2 Qc2+ 59. Ke1 $11) (44. Rg2 $1 $18) 44... Rf7 $16 {[%emt 0:19:01] [#]} 45. Rxg5 $1 {[%emt 0:00:07]} Qe2+ {[%emt 0:00:12]} 46. Rg2 {[%emt 0:00:05]} Rxc7 {[%emt 0:00:14]} 47. Rxe2 {[%emt 0:00:04][%mdl 4096] Endgame. KRB-KRB} Rf7 {[%emt 0:00:28] Prevents Rf2} ({Black should try} 47... Bxe2 48. Bxc7 Kg6) 48. Rc2 {[%emt 0:00:40]} Kg6 {[%emt 0:00:18]} (48... Rf3 $16) 49. Kg3 {[%emt 0:00:09]} (49. Bf4 $18) 49... Rf1 {[%emt 0:00:46]} 50. Rf2 {[%emt 0:01:10]} Rg1+ {[%emt 0:00:44]} (50... Rxf2 $16 51. Kxf2 Kf5) 51. Kf4 {[%emt 0:00:14]} Bf1 {[%emt 0:00:57]} 52. Rf3 {[%emt 0:01:15]} (52. h4 $142) 52... Kh5 {[%emt 0:02:21]} (52... Be2 $16 {might work better.}) 53. Bf6 {[%emt 0:01:31]} Bg2 $2 {[%emt 0:01:57]} (53... Bc4 $16 54. e4 Rg2) 54. Rg3 $18 {[%emt 0:02:19]} Rf1+ {[%emt 0:00:05]} 55. Ke5 {[%emt 0:00:02]} Bd5 {[%emt 0:00:21]} 56. Be7 {[%emt 0:05:33]} Rf5+ {[%emt 0:01:24]} 57. Kd6 {[%emt 0:00:04]} Rf2 {[%emt 0:00:13] [#]} 58. e4 $1 {[%emt 0:01:17]} Bxe4 {[%emt 0:00:13]} 59. Kxe6 {[%emt 0:00:04]} Rxb2 $2 {[%emt 0:00:54]} (59... Bf5+ 60. Kd6 Kh6) 60. d5 {[%emt 0:00:27]} Re2 {[%emt 0:00:31][%cal Oe4d5]} 61. Rg5+ {[%emt 0:00:48]} Kh6 {[%emt 0:00:16][%cal Oe4d5]} 62. Re5 {[%emt 0:00:31]} Kg6 {[%emt 0:00:48]} 63. Kd6 {[%emt 0:04:26] aiming for Bg5.} Kf7 {[%emt 0:00:31]} 64. Bg5 {[%emt 0:01:16]} b5 {[%emt 0:00:29]} 65. Kc5 {[%emt 0:01:16]} Kg6 {[%emt 0:00:29]} (65... Rc2+ $142 66. Kxb5 Bg2) 66. h4 {[%emt 0:00:47] Strongly threatening h5+.} (66. Kxb5 $2 {perishes.} Bd3+ 67. Kxa4 Rxe5 $19) 66... Rc2+ {[%emt 0:00:37]} 67. Kxb5 {[%emt 0:00:10]} Bf5 {[%emt 0:00:24]} 68. Kxa4 {[%emt 0:00:44]} Rb2 {[%emt 0:00:19]} 69. d6 {[%emt 0:00:28][%cal Oe5f5] White wants to mate with Rxf5!} Rb6 {[%emt 0:00:45] [#]} (69... Bd7+ $18 70. Ka5 Rb3) 70. Rxf5 $1 {[%emt 0:00:13] Weighted Error Value: White=0.20 (precise) /Black=0.29 (precise) .  Loses game:     	---       	Black=2      Mistake:       	White=7     	Black=10     Inaccurate:     	White=5     	Black=3      OK:         	White=22    	Black=16     Best:        	White=5     	Black=10     Brilliant:      	White=2     	---} 1-0

[Event "40th Cappelle Open 2024"]
[Site "Cappelle-la-Grande"]
[Date "2024.03.03"]
[Round "2.16"]
[White "Feryn, Benjamin"]
[Black "Firat, Burak"]
[Result "1-0"]
[ECO "C01"]
[WhiteElo "2182"]
[BlackElo "2439"]
[Annotator "RC"]
[PlyCount "111"]
[EventDate "2024.03.02"]
[EventType "swiss"]
[EventCountry "FRA"]
[SourceTitle "playchess.com"]
[Source "ChessBase"]
[SourceQuality "1"]
[TimeControl "40/5400+30:1800+30"]

1. e4 {[%emt 0:00:04]} e6 {[%emt 0:01:31]} 2. d4 {[%emt 0:00:13]} d5 {[%emt 0:00:08]} 3. Bd3 {[%emt 0:00:18]} Nc6 {[%emt 0:05:59]} 4. c3 {[%emt 0:16:42]} dxe4 {[%emt 0:01:48]} 5. Bxe4 {[%emt 0:03:00]} Nf6 {[%emt 0:00:11]} 6. Bg5 {[%emt 0:00:42]} Qd6 {[%emt 0:09:19]} 7. Bxf6 {[%emt 0:04:03]} gxf6 {[%emt 0:03:43]} 8. Nd2 {[%emt 0:00:21]} Bd7 {[%emt 0:11:37]} 9. Ne2 {[%emt 0:05:38]} Bh6 {[%emt 0:12:12]} 10. O-O {[%emt 0:09:01]} f5 {[%emt 0:02:52]} 11. Nc4 {[%emt 0:06:40]} Qe7 {[%emt 0:00:06]} 12. Bf3 {[%emt 0:00:09]} O-O {[%emt 0:03:22]} 13. b4 {[%emt 0:03:04]} b5 {[%emt 0:13:40]} 14. Ne3 {[%emt 0:03:06]} Rad8 {[%emt 0:01:25]} 15. a4 {[%emt 0:10:19]} a6 {[%emt 0:01:07]} 16. axb5 {[%emt 0:04:48]} axb5 {[%emt 0:00:07]} 17. Ra6 {[%emt 0:00:35]} Bxe3 {[%emt 0:01:43]} 18. fxe3 {[%emt 0:05:20]} Nb8 {[%emt 0:00:01]} 19. Ra5 {[%emt 0:01:32]} Nc6 {[%emt 0:06:58]} 20. Ra6 {[%emt 0:02:01]} Nb8 {[%emt 0:00:02]} 21. Ra5 {[%emt 0:02:02]} Qg5 {[%emt 0:00:37]} 22. Qc1 {[%emt 0:01:02]} Rfe8 {[%emt 0:01:12]} 23. e4 {[%emt 0:05:41]} Qxc1 {[%emt 0:01:57]} 24. Rxc1 {[%emt 0:01:58]} fxe4 {[%emt 0:01:45]} 25. Bxe4 {[%emt 0:00:05]} e5 {[%emt 0:03:17]} 26. d5 {[%emt 0:00:11]} f5 {[%emt 0:06:59]} 27. Bf3 {[%emt 0:00:04]} Re7 {[%emt 0:01:29]} 28. c4 {[%emt 0:05:29]} bxc4 {[%emt 0:06:11]} 29. Rxc4 {[%emt 0:00:06]} Be8 {[%emt 0:01:28]} 30. Nc3 {[%emt 0:00:24]} Kf8 {[%emt 0:02:02]} 31. b5 {[%emt 0:05:03]} e4 {[%emt 0:00:22]} 32. Be2 {[%emt 0:00:10]} Rd6 {[%emt 0:00:42]} 33. Ra7 {[%emt 0:01:27]} Nd7 {[%emt 0:00:22]} 34. Rcxc7 {[%emt 0:00:57]} f4 {[%emt 0:00:42]} 35. Rc6 {[%emt 0:01:33]} Rg6 {[%emt 0:00:02]} 36. Bh5 {[%emt 0:03:17]} Rg5 {[%emt 0:00:57]} 37. Bxe8 {[%emt 0:00:08]} f3 {[%emt 0:00:21]} 38. Rxd7 {[%emt 0:00:59]} Rxg2+ {[%emt 0:00:17]} 39. Kf1 {[%emt 0:00:31]} Rxe8 {[%emt 0:00:13]} 40. Rxh7 {[%emt 0:01:11]} Kg8 {[%emt 0:00:27]} 41. Rh3 {[%emt 0:07:11]} Ra8 {[%emt 0:01:57]} 42. Rg3+ {[%emt 0:03:35]} Rxg3 {[%emt 0:00:33]} 43. hxg3 {[%emt 0:00:05]} e3 {[%emt 0:00:18]} 44. Ra6 {[%emt 0:00:24]} Rc8 {[%emt 0:00:25]} 45. Ra3 {[%emt 0:00:17]} Kg7 {[%emt 0:01:12]} 46. Ne2 {[%emt 0:00:24]} Rc5 {[%emt 0:01:51]} 47. Rxe3 {[%emt 0:02:45]} fxe2+ {[%emt 0:00:09]} 48. Kxe2 {[%emt 0:00:13]} Rxb5 {[%emt 0:00:10]} 49. Rd3 {[%emt 0:06:53]} Rb7 {[%emt 0:00:02]} 50. Ke3 {[%emt 0:00:25]} Kf6 {[%emt 0:00:02]} 51. Kd4 {[%emt 0:00:50]} Ke7 {[%emt 0:01:02]} 52. Ke5 {[%emt 0:00:58]} Rb1 {[%emt 0:00:17]} 53. d6+ {[%emt 0:00:24]} Kd7 {[%emt 0:00:02]} 54. g4 {[%emt 0:00:13]} Re1+ {[%emt 0:00:02]} 55. Kf6 {[%emt 0:01:14]} Re6+ {[%emt 0:00:50]} 56. Kf5 {[%emt 0:01:14]} 1-0

[Event "40th Cappelle Open 2024"]
[Site "Cappelle-la-Grande"]
[Date "2024.03.03"]
[Round "2.17"]
[White "Tarhan, Adar"]
[Black "Zienkiewicz, Jan"]
[Result "1-0"]
[ECO "D00"]
[WhiteElo "2432"]
[BlackElo "2218"]
[Annotator "TA"]
[PlyCount "57"]
[EventDate "2024.03.02"]
[EventType "swiss"]
[EventCountry "FRA"]
[SourceTitle "playchess.com"]
[Source "ChessBase"]
[SourceQuality "1"]
[TimeControl "40/5400+30:1800+30"]

{[%evp 9,57,-10,-14,-10,-14,-9,-6,-32,-31,-85,-87,-75,-73,-64,-41,-45,-16,-6,-29,-12,-4,-8,-13,-19,-5,0,-29,-12,207,158,616,579,604,546,535,535,700,659,820,467,569,571,1286,1266,1424,875,1377,770,787,540]} 1. d4 {[%emt 0:01:14]} Nf6 {[%emt 0:00:07]} 2. Nc3 {[%emt 0:00:05]} d5 {[%emt 0:00:09]} 3. Bf4 {[%emt 0:00:05]} a6 {[%emt 0:00:04]} 4. e3 {[%emt 0:00:16]} b5 {[%emt 0:00:08]} 5. a4 {[%emt 0:00:54]} b4 {[%emt 0:01:51]} 6. Na2 {[%emt 0:01:20]} e6 {[%emt 0:02:33]} 7. Nf3 {[%emt 0:01:40]} c5 {[%emt 0:12:50]} 8. Ne5 {[%emt 0:04:54] The position is equal.} Nbd7 {[%emt 0:02:49]} 9. Bd3 {[%emt 0:08:51]} ({Better is} 9. Be2 $15) 9... Nxe5 {[%emt 0:04:31]} 10. Bxe5 {[%emt 0:00:57]} Nd7 {[%emt 0:09:30]} 11. Bg3 {[%emt 0:00:14]} Qb6 {[%emt 0:01:32]} 12. c3 {[%emt 0:01:58][%cal Oa4a5]} a5 {[%emt 0:04:45]} 13. dxc5 {[%emt 0:03:16]} Nxc5 {[%emt 0:07:46]} 14. Bb5+ {[%emt 0:00:50]} Bd7 {[%emt 0:00:08]} 15. cxb4 {[%emt 0:00:07]} (15. Bxd7+ {simplifies} Nxd7 16. O-O h5 17. cxb4 axb4 18. Rc1) 15... axb4 {[%emt 0:00:14]} 16. Bxd7+ {[%emt 0:00:09]} Kxd7 {[%emt 0:04:42][%cal Be8d7,Bd7c6,Bc6b5][%mdl 32]} 17. O-O {[%emt 0:03:41]} Rxa4 {[%emt 0:09:46] [#] aiming for ...Qa5.} 18. e4 $1 {[%emt 0:00:28][%cal Be3e4,Be4d5,Bd5e6][%mdl 32]} Qa5 $2 {[%emt 0:03:01]} (18... Be7 $11 {and Black has nothing to worry.} 19. b3 (19. exd5 Rha8 $17) 19... Ra5 20. exd5 Rha8 21. dxe6+ Ke8 22. exf7+ Kf8) 19. exd5 $1 $18 {[%emt 0:00:43]} Rxa2 $2 {[%emt 0:02:48] This costs Black the game.} (19... f6 $16) 20. dxe6+ {[%emt 0:00:03] White is clearly winning.} Kc6 {[%emt 0:02:45] White must now prevent ...Rxa1.} 21. Qf3+ {[%emt 0:00:37]} (21. exf7 $2 {perishes.} Rxa1 22. Qxa1 Qxa1 23. Rxa1 Nd7 $19) 21... Kb5 {[%emt 0:06:48]} 22. Qe2+ {[%emt 0:00:58]} Kc6 {[%emt 0:00:56]} 23. Rac1 {[%emt 0:01:16]} Qb5 {[%emt 0:02:51]} 24. Qf3+ {[%emt 0:04:20]} Kb6 {[%emt 0:00:25]} 25. Qd5 {[%emt 0:00:25]} ({Weaker is} 25. Qxf7 Ra7 26. Qf3 Be7 $11) 25... Ra7 {[%emt 0:02:09]} 26. Qd8+ {[%emt 0:02:57]} Kc6 {[%emt 0:00:25]} 27. e7 {[%emt 0:04:04]} Rxe7 {[%emt 0:02:53]} 28. Qd6+ {[%emt 0:00:12]} Kb7 {[%emt 0:00:03]} 29. Rxc5 {[%emt 0:00:11] Weighted Error Value: White=0.48/Black=0.66.  Loses game:     	---       	Black=2      Mistake:       	White=1     	---        Inaccurate:     	White=1     	Black=3      OK:         	White=6     	Black=4      Best:        	White=2     	Black=1      Strong:       	White=2     	---} 1-0